[Event "FIDE Open Sachove Univerzity QCC"]
[Site "Ceske Budejovice"]
[Date "2020.07.09"]
[Round "9.7"]
[White "Veverka, Vladimir"]
[Black "Zachar, Jaroslav"]
[Result "0-1"]
[ECO "A84"]
[WhiteElo "1644"]
[BlackElo "1831"]
[Annotator "NA RC"]
[PlyCount "94"]
[EventDate "2020.07.01"]
[EventType "swiss"]
[EventCountry "CZE"]
[SourceTitle "playchess.com"]
[Source "ChessBase"]
[SourceQuality "1"]
[TimeControl "40/5400+30:1800+30"]

1. d4 {[%emt 0:00:00]} d5 {[%emt 0:05:36]} 2. c4 {[%emt 0:00:00]} e6 {[%emt 0:00:34]} 3. Nc3 {[%emt 0:00:00]} f5 {[%emt 0:01:02]} 4. Bf4 {[%emt 0:01:04]} c6 {[%emt 0:01:24]} 5. e3 {[%emt 0:00:16]} Nf6 {[%emt 0:00:31]} 6. Nf3 {[%emt 0:00:23]} Be7 {[%emt 0:01:29]} 7. Be2 {[%emt 0:00:34]} O-O {[%emt 0:00:44]} 8. O-O {[%emt 0:00:05]} Nbd7 {[%emt 0:00:45] A84: Dutch Defence: 2 c4 Miscellaneous.} 9. Qc2 {[%emt 0:00:22]} Ne4 {[%emt 0:03:08]} 10. Nxe4 {[%emt 0:07:26]} fxe4 {[%emt 0:00:19]} 11. Ne5 {[%emt 0:01:24] [#]} Nf6 $146 {[%emt 0:01:25]} ({Predecessor:} 11... Nxe5 $14 12. Bxe5 Bd6 13. Bxd6 Qxd6 14. f3 exf3 15. Bxf3 b6 16. Rac1 Ba6 17. Be2 Bb7 {½-½ (42) Hetzer,V (1949)-Wasylkiewicz,A (1816) Polanica Zdroj 2018}) 12. Ng4 {[%emt 0:00:46]} (12. f3 $16) 12... Ne8 {[%emt 0:01:35]} 13. c5 {[%emt 0:04:43]} h5 {[%emt 0:05:02]} 14. Ne5 {[%emt 0:03:30]} g5 {[%emt 0:01:57]} 15. Ng6 {[%emt 0:07:01]} gxf4 {[%emt 0:00:51]} 16. Nxf8 {[%emt 0:00:32]} Bxf8 {[%emt 0:00:38]} 17. Bxh5 {[%emt 0:01:42]} Ng7 {[%emt 0:03:06]} 18. Be2 {[%emt 0:08:53]} Nf5 {[%emt 0:02:58]} 19. g4 {[%emt 0:06:16]} fxg3 {[%emt 0:03:04]} 20. hxg3 {[%emt 0:01:41]} Qg5 {[%emt 0:00:45]} 21. Kg2 {[%emt 0:06:05]} Bh6 {[%emt 0:17:30]} 22. Qb3 {[%emt 0:03:36]} Qg7 {[%emt 0:00:24]} 23. Rg1 {[%emt 0:01:36]} Rb8 {[%emt 0:02:41]} 24. Rac1 {[%emt 0:03:47]} e5 {[%emt 0:06:40]} 25. dxe5 {[%emt 0:03:11]} Qxe5 {[%emt 0:00:15]} 26. Qc3 {[%emt 0:08:52]} Qe6 {[%emt 0:02:33]} 27. Rh1 {[%emt 0:01:26]} Bg7 {[%emt 0:00:13]} 28. Qa5 {[%emt 0:01:07]} Qe8 {[%emt 0:05:42]} 29. Qxa7 {[%emt 0:03:53]} Be6 {[%emt 0:04:15]} 30. Qa3 {[%emt 0:05:12]} d4 {[%emt 0:06:49]} 31. exd4 {[%emt 0:02:23]} Nxd4 {[%emt 0:04:03]} 32. Qe3 {[%emt 0:03:55]} Nxe2 {[%emt 0:03:55]} 33. Qxe2 {[%emt 0:00:12]} Bxa2 {[%emt 0:00:09]} 34. Qh5 {[%emt 0:01:24]} Qxh5 {[%emt 0:01:57]} 35. Rxh5 {[%emt 0:00:06]} Bd5 {[%emt 0:00:05]} 36. b4 {[%emt 0:01:51]} Rf8 {[%emt 0:00:30]} 37. Kg1 {[%emt 0:02:46]} Bd4 {[%emt 0:02:48]} 38. Rc2 {[%emt 0:00:53]} Rf3 {[%emt 0:00:32]} 39. Rg5+ {[%emt 0:00:44]} Kf7 {[%emt 0:00:16]} 40. b5 {[%emt 0:02:24]} e3 {[%emt 0:00:44]} 41. Rxd5 {[%emt 0:32:48]} cxd5 {[%emt 0:30:46]} 42. fxe3 {[%emt 0:00:00]} Rxg3+ {[%emt 0:00:00]} 43. Kh1 {[%emt 0:00:00]} Bxe3 {[%emt 0:00:00]} 44. c6 {[%emt 0:00:00]} bxc6 {[%emt 0:00:00]} 45. Rxc6 {[%emt 0:00:00]} Rg1+ {[%emt 0:00:00]} 46. Kh2 {[%emt 0:00:00]} Rb1 {[%emt 0:00:00]} 47. Rc7+ {[%emt 0:00:00]} Ke6 $19 {[%emt 0:00:00]} 0-1

[Event "FIDE Open Sachove Univerzity QCC"]
[Site "Ceske Budejovice"]
[Date "2020.07.10"]
[Round "9.8"]
[White "Tajovsky, Simon"]
[Black "Berka, Lubos"]
[Result "1/2-1/2"]
[ECO "A41"]
[WhiteElo "1594"]
[BlackElo "1718"]
[Annotator "NA RC"]
[PlyCount "55"]
[EventDate "2020.07.01"]
[EventType "swiss"]
[EventCountry "CZE"]
[TimeControl "40/5400+30:1800+30"]

1. d4 {[%emt 0:00:00]} d6 {[%emt 0:00:00]} 2. c4 {[%emt 0:00:02]} e5 {[%emt 0:00:00]} 3. d5 {[%emt 0:00:23]} f5 {[%emt 0:00:47]} 4. Nc3 {[%emt 0:01:31]} Nf6 {[%emt 0:00:12]} 5. Nf3 {[%emt 0:01:11]} Be7 {[%emt 0:01:33]} 6. e3 {[%emt 0:02:33]} O-O {[%emt 0:01:41]} 7. Be2 {[%emt 0:00:28]} c5 {[%emt 0:03:07]} 8. O-O {[%emt 0:04:56]} Nbd7 {[%emt 0:04:21]} 9. a3 {[%emt 0:02:42]} Ng4 {[%emt 0:03:40]} 10. h3 {[%emt 0:02:52]} Nh6 {[%emt 0:02:49]} 11. b4 {[%emt 0:03:37]} b6 {[%emt 0:02:12]} 12. e4 {[%emt 0:06:01]} Nf6 {[%emt 0:02:24]} 13. Bxh6 {[%emt 0:03:02]} gxh6 {[%emt 0:00:06]} 14. Qc2 {[%emt 0:02:01]} f4 {[%emt 0:02:58]} 15. bxc5 {[%emt 0:03:39]} bxc5 {[%emt 0:00:12]} 16. Nd2 {[%emt 0:07:20]} Kh8 {[%emt 0:00:36]} 17. Kh2 {[%emt 0:02:05]} Rg8 {[%emt 0:01:36]} 18. Bf3 {[%emt 0:02:27]} h5 {[%emt 0:01:19]} 19. Rab1 {[%emt 0:04:10]} h6 {[%emt 0:02:02]} 20. Rb5 {[%emt 0:01:37]} h4 {[%emt 0:01:03]} 21. Rfb1 {[%emt 0:02:00]} Qc7 {[%emt 0:04:21]} 22. Qb2 {[%emt 0:06:50]} Ba6 {[%emt 0:03:56]} 23. Rb3 {[%emt 0:00:52]} h5 {[%emt 0:00:23]} 24. Nb5 {[%emt 0:02:17]} Qd7 {[%emt 0:00:35]} 25. Rd3 {[%emt 0:02:21]} Rab8 {[%emt 0:04:46]} 26. a4 {[%emt 0:02:00]} Bc8 {[%emt 0:02:12]} 27. Rb3 {[%emt 0:03:34]} Ba6 {[%emt 0:05:26]} 28. Rd3 {[%emt 0:01:11]} 1/2-1/2

[Event "FIDE Open Sachove Univerzity QCC"]
[Site "Ceske Budejovice"]
[Date "2020.07.09"]
[Round "9.8"]
[White "Skalicky, Jindrich"]
[Black "Predota, Vit"]
[Result "1-0"]
[ECO "C60"]
[WhiteElo "1165"]
[BlackElo "1233"]
[Annotator "NA"]
[PlyCount "105"]
[EventDate "2020.07.01"]
[EventType "swiss"]
[EventCountry "CZE"]
[SourceTitle "playchess.com"]
[Source "ChessBase"]
[SourceQuality "1"]
[TimeControl "40/5400+30:1800+30"]

1. e4 {[%emt 0:00:00]} e5 {[%emt 0:00:00]} 2. Nf3 {[%emt 0:00:00]} Nc6 {[%emt 0:00:00]} 3. Bb5 {[%emt 0:00:00]} Bd6 {[%emt 0:00:53]} 4. d4 {[%emt 0:03:44]} exd4 {[%emt 0:01:51]} 5. Nxd4 {[%emt 0:00:42]} Nxd4 {[%emt 0:00:35]} 6. Qxd4 {[%emt 0:00:15]} Qf6 {[%emt 0:00:30]} 7. Qxf6 {[%emt 0:00:42]} Nxf6 {[%emt 0:00:54]} 8. Nc3 {[%emt 0:01:17]} a6 {[%emt 0:00:45]} 9. Bd3 {[%emt 0:00:14]} b5 {[%emt 0:00:59]} 10. O-O {[%emt 0:03:46]} O-O {[%emt 0:00:36]} 11. Re1 {[%emt 0:04:26]} Ng4 {[%emt 0:00:55]} 12. h3 {[%emt 0:01:06]} Ne5 {[%emt 0:00:29]} 13. a3 {[%emt 0:06:30]} b4 {[%emt 0:02:02]} 14. axb4 {[%emt 0:01:00]} Nxd3 {[%emt 0:00:36]} 15. cxd3 {[%emt 0:00:13]} Bxb4 {[%emt 0:00:38]} 16. Bd2 {[%emt 0:00:29]} d6 {[%emt 0:00:43]} 17. Rad1 {[%emt 0:00:33]} f5 {[%emt 0:00:35]} 18. Nd5 {[%emt 0:02:29]} Bxd2 {[%emt 0:00:43]} 19. Rxd2 {[%emt 0:00:57]} c6 {[%emt 0:00:23]} 20. Nb6 {[%emt 0:03:04]} Rb8 {[%emt 0:00:27]} 21. Nxc8 {[%emt 0:00:38]} Rbxc8 {[%emt 0:00:06]} 22. exf5 {[%emt 0:02:18]} Rxf5 {[%emt 0:00:19]} 23. Re6 {[%emt 0:01:16]} Rf6 {[%emt 0:01:41]} 24. Rde2 {[%emt 0:01:48]} d5 {[%emt 0:02:44]} 25. Re8+ {[%emt 0:04:20]} Rxe8 {[%emt 0:01:05]} 26. Rxe8+ {[%emt 0:00:07]} Rf8 {[%emt 0:00:08]} 27. Rxf8+ {[%emt 0:00:33]} Kxf8 {[%emt 0:00:08]} 28. Kf1 {[%emt 0:00:11]} Ke7 {[%emt 0:00:37]} 29. Ke2 {[%emt 0:00:18]} Ke6 {[%emt 0:00:15]} 30. Ke3 {[%emt 0:01:11]} g5 {[%emt 0:00:40]} 31. f4 {[%emt 0:01:00]} gxf4+ {[%emt 0:00:51]} 32. Kxf4 {[%emt 0:00:08]} c5 {[%emt 0:01:29]} 33. Ke3 {[%emt 0:01:25]} Ke5 {[%emt 0:00:29]} 34. g3 {[%emt 0:03:59]} d4+ {[%emt 0:03:07]} 35. Kd2 {[%emt 0:01:36]} a5 {[%emt 0:01:03]} 36. b3 {[%emt 0:02:19]} h5 {[%emt 0:00:32]} 37. Kc2 {[%emt 0:00:28]} Kf5 {[%emt 0:01:20]} 38. Kb2 {[%emt 0:00:22]} Kg5 {[%emt 0:00:16]} 39. Ka3 {[%emt 0:00:23]} h4 {[%emt 0:00:27]} 40. gxh4+ {[%emt 0:00:37]} Kxh4 {[%emt 0:00:09]} 41. Ka4 {[%emt 0:30:08]} Kxh3 {[%emt 0:30:10]} 42. Kb5 {[%emt 0:00:57]} Kg4 {[%emt 0:02:26]} 43. Kxc5 {[%emt 0:00:20]} Kf5 {[%emt 0:01:01]} 44. Kxd4 {[%emt 0:00:31]} Ke6 {[%emt 0:00:19]} 45. Kc4 {[%emt 0:01:33]} Ke5 {[%emt 0:00:25]} 46. Kb5 {[%emt 0:00:50]} Kd4 {[%emt 0:00:19]} 47. Kxa5 {[%emt 0:00:18]} Kxd3 {[%emt 0:00:18]} 48. b4 {[%emt 0:00:59]} Kc4 {[%emt 0:00:06]} 49. b5 {[%emt 0:00:15]} Kc5 {[%emt 0:00:10]} 50. b6 {[%emt 0:00:31]} Kc6 {[%emt 0:00:37]} 51. Ka6 {[%emt 0:00:13]} Kd7 {[%emt 0:00:10]} 52. b7 {[%emt 0:00:32]} Kc7 {[%emt 0:00:04]} 53. Ka7 {[%emt 0:00:19]} 1-0

[Event "FIDE Open Sachove Univerzity QCC"]
[Site "Ceske Budejovice"]
[Date "2020.07.10"]
[Round "9.9"]
[White "Molnar, Ladislav"]
[Black "Kroulik, Vaclav"]
[Result "1-0"]
[ECO "B21"]
[WhiteElo "1712"]
[BlackElo "1442"]
[Annotator "NA RC"]
[PlyCount "59"]
[EventDate "2020.07.01"]
[EventType "swiss"]
[EventCountry "CZE"]
[TimeControl "40/5400+30:1800+30"]

1. e4 {[%emt 0:00:00]} c5 {[%emt 0:00:00]} 2. f4 {[%emt 0:00:06]} e6 {[%emt 0:00:00]} 3. Nf3 {[%emt 0:00:11]} Nf6 {[%emt 0:00:17]} 4. Nc3 {[%emt 0:00:52]} b6 {[%emt 0:02:01]} 5. e5 {[%emt 0:06:28]} Nd5 {[%emt 0:03:25]} 6. Nxd5 {[%emt 0:02:34]} exd5 {[%emt 0:01:17]} 7. d4 {[%emt 0:02:56]} c4 {[%emt 0:05:42]} 8. Be2 {[%emt 0:03:26]} d6 {[%emt 0:01:08]} 9. O-O {[%emt 0:00:26]} Nc6 {[%emt 0:02:55]} 10. c3 {[%emt 0:00:59]} Be7 {[%emt 0:01:49]} 11. b4 {[%emt 0:09:10]} dxe5 {[%emt 0:05:18]} 12. fxe5 {[%emt 0:00:46]} O-O {[%emt 0:00:30]} 13. a4 {[%emt 0:04:10]} a6 {[%emt 0:02:31]} 14. Bf4 {[%emt 0:06:26]} f6 {[%emt 0:03:02]} 15. Qd2 {[%emt 0:03:27]} Be6 {[%emt 0:07:47]} 16. Qe3 {[%emt 0:04:46]} Qd7 {[%emt 0:03:58]} 17. exf6 {[%emt 0:06:29]} Bxf6 {[%emt 0:01:28]} 18. Ne5 {[%emt 0:00:08]} Nxe5 {[%emt 0:00:45]} 19. Bxe5 {[%emt 0:00:33]} Be7 {[%emt 0:02:46]} 20. Qg3 {[%emt 0:06:39]} g6 {[%emt 0:04:42]} 21. h4 {[%emt 0:05:23]} Rf5 {[%emt 0:02:58]} 22. Rxf5 {[%emt 0:03:25]} Bxf5 {[%emt 0:00:24]} 23. h5 {[%emt 0:08:26]} Rf8 {[%emt 0:02:45]} 24. hxg6 {[%emt 0:00:35]} Bxg6 {[%emt 0:00:50]} 25. Bg4 {[%emt 0:02:37]} Qc6 {[%emt 0:00:43]} 26. Qh3 {[%emt 0:02:15]} Bf6 {[%emt 0:09:19]} 27. Bd7 {[%emt 0:03:49]} Qa8 {[%emt 0:01:04]} 28. Qe6+ {[%emt 0:00:34]} Kg7 {[%emt 0:00:37]} 29. Qe7+ {[%emt 0:02:33]} Rf7 {[%emt 0:00:48]} 30. Bxf6+ {[%emt 0:00:16]} 1-0

[Event "FIDE Open Sachove Univerzity QCC"]
[Site "Ceske Budejovice"]
[Date "2020.07.09"]
[Round "9.9"]
[White "Stavova, Marketa"]
[Black "Zezula, Matej"]
[Result "0-1"]
[ECO "C50"]
[WhiteElo "1219"]
[BlackElo "1125"]
[Annotator "NA"]
[PlyCount "118"]
[EventDate "2020.07.01"]
[EventType "swiss"]
[EventCountry "CZE"]
[SourceTitle "playchess.com"]
[Source "ChessBase"]
[SourceQuality "1"]
[TimeControl "40/5400+30:1800+30"]

1. e4 {[%emt 0:00:00]} e5 {[%emt 0:00:00]} 2. Nf3 {[%emt 0:00:07]} Nc6 {[%emt 0:00:00]} 3. Bc4 {[%emt 0:00:20]} Nf6 {[%emt 0:00:33]} 4. d3 {[%emt 0:00:37]} Bc5 {[%emt 0:00:55]} 5. Nc3 {[%emt 0:01:30]} h6 {[%emt 0:01:00]} 6. Be3 {[%emt 0:01:03]} d6 {[%emt 0:01:12]} 7. d4 {[%emt 0:02:54]} exd4 {[%emt 0:03:07]} 8. Nxd4 {[%emt 0:00:51]} Nxd4 {[%emt 0:02:33]} 9. Bxd4 {[%emt 0:00:32]} Bb4 {[%emt 0:01:09]} 10. O-O {[%emt 0:04:17]} Bxc3 {[%emt 0:03:54]} 11. Bxc3 {[%emt 0:00:08]} O-O {[%emt 0:02:24]} 12. Qf3 {[%emt 0:03:31]} Be6 {[%emt 0:01:21]} 13. Bd3 {[%emt 0:02:23]} Nd7 {[%emt 0:05:27]} 14. Rad1 {[%emt 0:05:32]} Qg5 {[%emt 0:02:53]} 15. Qg3 {[%emt 0:09:22]} f5 {[%emt 0:06:33]} 16. f4 {[%emt 0:02:10]} Qxg3 {[%emt 0:02:01]} 17. hxg3 {[%emt 0:00:12]} Nc5 {[%emt 0:01:05]} 18. exf5 {[%emt 0:00:48]} Bxf5 {[%emt 0:01:39]} 19. Bc4+ {[%emt 0:00:46]} Kh8 {[%emt 0:00:45]} 20. Rde1 {[%emt 0:03:39]} Ne4 {[%emt 0:02:17]} 21. g4 {[%emt 0:02:34]} Nxc3 {[%emt 0:01:35]} 22. gxf5 {[%emt 0:00:29]} Na4 {[%emt 0:00:47]} 23. Bb5 {[%emt 0:01:38]} Nb6 {[%emt 0:00:43]} 24. g4 {[%emt 0:00:48]} c6 {[%emt 0:01:00]} 25. Bd3 {[%emt 0:00:32]} Rae8 {[%emt 0:01:21]} 26. c4 {[%emt 0:00:59]} d5 {[%emt 0:02:01]} 27. cxd5 {[%emt 0:01:04]} Nxd5 {[%emt 0:02:12]} 28. Rxe8 {[%emt 0:00:10]} Rxe8 {[%emt 0:00:13]} 29. Rf2 {[%emt 0:08:04]} Re3 {[%emt 0:01:03]} 30. Be2 {[%emt 0:00:57]} Nxf4 {[%emt 0:03:41]} 31. Rxf4 {[%emt 0:00:10]} Rxe2 {[%emt 0:00:06]} 32. Rf2 {[%emt 0:00:04]} Rxf2 {[%emt 0:01:30]} 33. Kxf2 {[%emt 0:00:07]} Kg8 {[%emt 0:00:10]} 34. Ke3 {[%emt 0:00:09]} Kf7 {[%emt 0:00:21]} 35. Kf4 {[%emt 0:00:44]} Kf6 {[%emt 0:01:13]} 36. b4 {[%emt 0:00:14]} b6 {[%emt 0:00:47]} 37. a4 {[%emt 0:00:31]} a5 {[%emt 0:00:52]} 38. bxa5 {[%emt 0:00:21]} bxa5 {[%emt 0:00:32]} 39. Ke4 {[%emt 0:01:23]} Kg5 {[%emt 0:01:49]} 40. Ke5 {[%emt 0:00:26]} Kxg4 {[%emt 0:00:32]} 41. f6 {[%emt 0:30:13]} gxf6+ {[%emt 0:30:11]} 42. Kxf6 {[%emt 0:00:08]} h5 {[%emt 0:00:06]} 43. Ke5 {[%emt 0:00:07]} h4 {[%emt 0:00:16]} 44. Kd6 {[%emt 0:00:24]} h3 {[%emt 0:00:07]} 45. Kxc6 {[%emt 0:00:05]} h2 {[%emt 0:00:07]} 46. Kb5 {[%emt 0:00:26]} h1=Q {[%emt 0:00:07]} 47. Kxa5 {[%emt 0:00:05]} Kf5 {[%emt 0:01:19]} 48. Ka6 {[%emt 0:00:25]} Qa8+ {[%emt 0:00:43]} 49. Kb5 {[%emt 0:00:13]} Ke6 {[%emt 0:00:05]} 50. a5 {[%emt 0:00:20]} Qb7+ {[%emt 0:00:19]} 51. Kc5 {[%emt 0:01:01]} Kd7 {[%emt 0:00:10]} 52. Kc4 {[%emt 0:00:27]} Kc6 {[%emt 0:00:15]} 53. Kc3 {[%emt 0:00:43]} Qb5 {[%emt 0:00:10]} 54. Kc2 {[%emt 0:00:32]} Qxa5 {[%emt 0:00:04]} 55. Kb1 {[%emt 0:00:29]} Qd2 {[%emt 0:00:09]} 56. Ka1 {[%emt 0:00:04]} Kb5 {[%emt 0:00:05]} 57. Kb1 {[%emt 0:00:09]} Kb4 {[%emt 0:00:04]} 58. Ka1 {[%emt 0:00:08]} Kb3 {[%emt 0:00:05]} 59. Kb1 {[%emt 0:00:10]} Qb2# {[%emt 0:00:08]} 0-1

[Event "FIDE Open Sachove Univerzity QCC"]
[Site "Ceske Budejovice"]
[Date "2020.07.10"]
[Round "9.10"]
[White "Kamleiter, Noah"]
[Black "Macho, Miloslav"]
[Result "0-1"]
[ECO "B06"]
[WhiteElo "1463"]
[BlackElo "1671"]
[Annotator "NA RC"]
[PlyCount "199"]
[EventDate "2020.07.01"]
[EventType "swiss"]
[EventCountry "CZE"]
[TimeControl "40/5400+30:1800+30"]

1. e4 {[%emt 0:00:00]} g6 {[%emt 0:00:00]} 2. d4 {[%emt 0:00:13]} Bg7 {[%emt 0:00:01]} 3. Nf3 {[%emt 0:00:40]} d6 {[%emt 0:00:25]} 4. Nc3 {[%emt 0:01:55]} a6 {[%emt 0:00:18]} 5. a4 {[%emt 0:03:12]} Nc6 {[%emt 0:03:46]} 6. Bc4 {[%emt 0:01:35]} e6 {[%emt 0:06:26]} 7. O-O {[%emt 0:01:24]} Nge7 {[%emt 0:03:08]} 8. Re1 {[%emt 0:00:52]} O-O {[%emt 0:00:12]} 9. Be3 {[%emt 0:11:40]} d5 {[%emt 0:02:03]} 10. Bf1 {[%emt 0:06:35]} dxe4 {[%emt 0:02:57]} 11. Nxe4 {[%emt 0:00:13]} h6 {[%emt 0:00:14]} 12. Qd2 {[%emt 0:00:33]} Nf5 {[%emt 0:01:59]} 13. c3 {[%emt 0:02:22]} Nxe3 {[%emt 0:00:10]} 14. Qxe3 {[%emt 0:00:58]} Ne7 {[%emt 0:01:40]} 15. Qd2 {[%emt 0:04:00]} Bd7 {[%emt 0:07:03]} 16. Nc5 {[%emt 0:03:38]} Bc6 {[%emt 0:07:55]} 17. Ne5 {[%emt 0:01:42]} Qc8 {[%emt 0:01:21]} 18. Nxc6 {[%emt 0:04:42]} Nxc6 {[%emt 0:00:32]} 19. Bc4 {[%emt 0:01:04]} Nd8 {[%emt 0:06:50]} 20. d5 {[%emt 0:04:52]} e5 {[%emt 0:10:12]} 21. f4 {[%emt 0:04:47]} b6 {[%emt 0:00:54]} 22. Nd3 {[%emt 0:01:24]} exf4 {[%emt 0:01:51]} 23. Nxf4 {[%emt 0:01:29]} Nb7 {[%emt 0:08:14]} 24. Re2 {[%emt 0:10:14]} Nd6 {[%emt 0:00:27]} 25. Bb3 {[%emt 0:00:31]} Qd7 {[%emt 0:02:00]} 26. Rae1 {[%emt 0:00:28]} Rae8 {[%emt 0:00:12]} 27. Qd3 {[%emt 0:00:54]} Rxe2 {[%emt 0:00:54]} 28. Rxe2 {[%emt 0:00:20]} a5 {[%emt 0:01:52]} 29. Bc2 {[%emt 0:03:08]} Re8 {[%emt 0:01:15]} 30. Rxe8+ {[%emt 0:01:18]} Qxe8 {[%emt 0:00:14]} 31. Qe2 {[%emt 0:00:28]} Qxe2 {[%emt 0:00:36]} 32. Nxe2 {[%emt 0:00:08]} Nc4 {[%emt 0:01:29]} 33. b4 {[%emt 0:00:57]} Kf8 {[%emt 0:01:52]} 34. Kf2 {[%emt 0:02:22]} Ke7 {[%emt 0:00:20]} 35. Kf3 {[%emt 0:00:57]} Kd6 {[%emt 0:00:29]} 36. Ke4 {[%emt 0:01:15]} f5+ {[%emt 0:04:36]} 37. Kd3 {[%emt 0:00:13]} Ne5+ {[%emt 0:00:54]} 38. Kd2 {[%emt 0:01:58]} Kxd5 {[%emt 0:01:14]} 39. Bb3+ {[%emt 0:00:33]} Kd6 {[%emt 0:01:09]} 40. Nd4 {[%emt 0:01:12]} axb4 {[%emt 0:02:16]} 41. cxb4 {[%emt 0:30:36]} Bf6 {[%emt 0:36:49]} 42. Nb5+ {[%emt 0:01:39]} Kc6 {[%emt 0:01:58]} 43. Nd4+ {[%emt 0:00:27]} Kb7 {[%emt 0:02:52]} 44. b5 {[%emt 0:01:23]} Ng4 {[%emt 0:07:49]} 45. Bd5+ {[%emt 0:01:36]} Kc8 {[%emt 0:00:00]} 46. Be6+ {[%emt 0:00:00]} Kd8 {[%emt 0:00:00]} 47. Nc6+ {[%emt 0:00:00]} Ke8 {[%emt 0:00:00]} 48. h3 {[%emt 0:00:00]} Ne5 {[%emt 0:00:00]} 49. Nxe5 {[%emt 0:00:00]} Bxe5 {[%emt 0:00:00]} 50. Bd5 {[%emt 0:00:00]} Ke7 {[%emt 0:00:00]} 51. Kd3 {[%emt 0:00:00]} g5 {[%emt 0:00:00]} 52. Bf3 {[%emt 0:00:00]} Kd6 {[%emt 0:00:00]} 53. Kc4 {[%emt 0:00:00]} Bg3 {[%emt 0:00:00]} 54. Kd4 {[%emt 0:00:00]} Bf2+ {[%emt 0:00:00]} 55. Kd3 {[%emt 0:00:00]} Kc5 {[%emt 0:00:00]} 56. Kc3 {[%emt 0:00:00]} Be1+ {[%emt 0:00:00]} 57. Kb3 {[%emt 0:00:00]} Kd4 {[%emt 0:00:00]} 58. Bh5 {[%emt 0:00:00]} Bg3 {[%emt 0:00:00]} 59. Bf3 {[%emt 0:00:00]} Ke3 {[%emt 0:00:00]} 60. Kc4 {[%emt 0:00:00]} Kf2 {[%emt 0:00:00]} 61. Kb4 {[%emt 0:00:00]} g4 {[%emt 0:00:00]} 62. hxg4 {[%emt 0:00:00]} fxg4 {[%emt 0:00:00]} 63. Bxg4 {[%emt 0:00:00]} Kxg2 {[%emt 0:00:00]} 64. Kb3 {[%emt 0:00:00]} Bf2 {[%emt 0:00:00]} 65. Kc4 {[%emt 0:00:00]} Kg3 {[%emt 0:00:00]} 66. Bh5 {[%emt 0:00:00]} Kh4 {[%emt 0:00:00]} 67. Bf7 {[%emt 0:00:00]} h5 {[%emt 0:00:00]} 68. Kd5 {[%emt 0:00:00]} Kg5 {[%emt 0:00:00]} 69. Kc6 {[%emt 0:00:00]} Bg3 {[%emt 0:00:00]} 70. Kb7 {[%emt 0:00:00]} h4 {[%emt 0:00:00]} 71. Bd5 {[%emt 0:00:00]} Bf4 {[%emt 0:00:00]} 72. Ka6 {[%emt 0:00:00]} h3 {[%emt 0:00:00]} 73. a5 {[%emt 0:00:00]} bxa5 {[%emt 0:00:00]} 74. Kxa5 {[%emt 0:00:00]} Be3 {[%emt 0:00:00]} 75. Ka6 {[%emt 0:00:00]} Kf4 {[%emt 0:00:00]} 76. Kb7 {[%emt 0:00:00]} Bb6 {[%emt 0:00:00]} 77. Kc6 {[%emt 0:00:00]} h2 {[%emt 0:00:00]} 78. Bh1 {[%emt 0:00:00]} Kg3 {[%emt 0:00:00]} 79. Kd5 {[%emt 0:00:00]} Kf2 {[%emt 0:00:00]} 80. Ke4 {[%emt 0:00:00]} Kg1 {[%emt 0:00:00]} 81. Bf3 {[%emt 0:00:00]} h1=Q {[%emt 0:00:00]} 82. Bxh1 {[%emt 0:00:00]} Kxh1 {[%emt 0:00:00]} 83. Kf3 {[%emt 0:00:00]} Kh2 {[%emt 0:00:00]} 84. Kf4 {[%emt 0:00:00]} Kg2 {[%emt 0:00:00]} 85. Ke4 {[%emt 0:00:00]} Kg3 {[%emt 0:00:00]} 86. Ke5 {[%emt 0:00:00]} Kf3 {[%emt 0:00:00]} 87. Kd5 {[%emt 0:00:00]} Kf4 {[%emt 0:00:00]} 88. Kc4 {[%emt 0:00:00]} Ke4 {[%emt 0:00:00]} 89. Kc3 {[%emt 0:00:00]} Kd5 {[%emt 0:00:00]} 90. Kb4 {[%emt 0:00:04]} Kd4 {[%emt 0:00:27]} 91. Kb3 {[%emt 0:00:51]} Kc5 {[%emt 0:00:34]} 92. Kc3 {[%emt 0:00:10]} Kxb5 {[%emt 0:00:13]} 93. Kb3 {[%emt 0:00:06]} c5 {[%emt 0:00:11]} 94. Kc3 {[%emt 0:00:08]} c4 {[%emt 0:00:11]} 95. Kc2 {[%emt 0:00:09]} Kb4 {[%emt 0:00:06]} 96. Kb2 {[%emt 0:00:12]} c3+ {[%emt 0:00:15]} 97. Kc2 {[%emt 0:00:43]} Kc4 {[%emt 0:00:05]} 98. Kc1 {[%emt 0:00:00]} Kb3 {[%emt 0:00:19]} 99. Kb1 {[%emt 0:00:01]} c2+ {[%emt 0:00:13]} 100. Kc1 {[%emt 0:00:06]} 0-1

[Event "FIDE Open Sachove Univerzity QCC"]
[Site "Ceske Budejovice"]
[Date "2020.07.09"]
[Round "9.11"]
[White "Kanka, Lukas"]
[Black "Finek, Vaclav"]
[Result "1/2-1/2"]
[ECO "B10"]
[WhiteElo "1667"]
[BlackElo "2210"]
[Annotator "ChessBase"]
[PlyCount "80"]
[EventDate "2020.07.01"]
[EventType "swiss"]
[EventCountry "CZE"]
[SourceTitle "playchess.com"]
[Source "ChessBase"]
[SourceQuality "1"]
[TimeControl "40/5400+30:1800+30"]

1. e4 {[%emt 0:00:33]} c5 {[%emt 0:00:54]} 2. Nf3 {[%emt 0:00:12]} g6 {[%emt 0:00:13]} 3. c3 {[%emt 0:00:03]} Bg7 {[%emt 0:04:35]} 4. d4 {[%emt 0:03:04]} cxd4 {[%emt 0:06:04]} 5. cxd4 {[%emt 0:00:23]} d5 {[%emt 0:01:53]} 6. exd5 {[%emt 0:03:36]} Qxd5 {[%emt 0:00:27]} 7. Nc3 {[%emt 0:06:32]} Qa5 {[%emt 0:01:47]} 8. Bc4 {[%emt 0:02:26]} Nf6 {[%emt 0:02:11]} 9. Qe2 {[%emt 0:02:57]} e6 {[%emt 0:10:52]} 10. O-O {[%emt 0:03:17]} O-O {[%emt 0:00:09]} 11. Bd2 {[%emt 0:03:51]} Qd8 {[%emt 0:04:40]} 12. Bf4 {[%emt 0:03:37]} a6 {[%emt 0:04:27]} 13. a4 {[%emt 0:03:34]} Nc6 {[%emt 0:01:06]} 14. Rfd1 {[%emt 0:01:27]} Nb4 {[%emt 0:01:25]} 15. Ne4 {[%emt 0:03:31]} Nfd5 {[%emt 0:08:50]} 16. Bd6 {[%emt 0:01:53]} Re8 {[%emt 0:00:18]} 17. Qd2 {[%emt 0:02:10]} a5 {[%emt 0:02:30]} 18. Bg3 {[%emt 0:04:58]} b6 {[%emt 0:05:38]} 19. Nd6 {[%emt 0:08:21]} Rf8 {[%emt 0:00:26]} 20. Nb5 {[%emt 0:00:42]} Ba6 {[%emt 0:05:40]} 21. Rac1 {[%emt 0:02:36]} Rc8 {[%emt 0:03:25]} 22. Nd6 {[%emt 0:01:38]} Ra8 {[%emt 0:00:31]} 23. Bxa6 {[%emt 0:04:17]} Rxa6 {[%emt 0:00:14]} 24. Ne1 {[%emt 0:10:29]} Qd7 {[%emt 0:03:47]} 25. Nb5 {[%emt 0:00:36]} Raa8 {[%emt 0:03:02]} 26. Nd3 {[%emt 0:00:30]} Nxd3 {[%emt 0:01:05]} 27. Qxd3 {[%emt 0:00:07]} Rac8 {[%emt 0:01:45]} 28. Be5 {[%emt 0:01:37]} Bh6 {[%emt 0:01:53]} 29. Rxc8 {[%emt 0:02:49]} Rxc8 {[%emt 0:00:04]} 30. h3 {[%emt 0:00:26]} Nb4 {[%emt 0:02:42]} 31. Qb3 {[%emt 0:01:23]} Bf8 {[%emt 0:07:47]} 32. Nc3 {[%emt 0:02:35]} Qe7 {[%emt 0:02:18]} 33. Ne4 {[%emt 0:02:01]} Nd5 {[%emt 0:01:15]} 34. Qxd5 {[%emt 0:02:59]} exd5 {[%emt 0:04:56]} 35. Nf6+ {[%emt 0:00:08]} Qxf6 {[%emt 0:01:29]} 36. Bxf6 {[%emt 0:00:09]} Bg7 {[%emt 0:05:08]} 37. Bxg7 {[%emt 0:00:40]} Kxg7 {[%emt 0:00:02]} 38. Rd3 {[%emt 0:00:17]} Rc1+ {[%emt 0:00:58]} 39. Kh2 {[%emt 0:00:09]} Rc2 {[%emt 0:00:02]} 40. Rb3 {[%emt 0:01:15]} Rc6 {[%emt 0:02:41]} 1/2-1/2